bitfinex/quotes_ETHUSD_20250808
["timestamp","ask_amount","ask_price","bid_price","bid_amount"]
[1754684088148,8.93853562,4055.4,4055.3,0.001]
[1754684088549,7.94283562,4055.4,4055.3,0.001]
[1754684088748,2.46615206,4054.9,4054.8,0.95262525]
[1754684088966,3.836,4054.9,4054.8,0.95262525]
[1754684089276,3.9592,4054.9,4054.8,0.95262525]
[1754684089568,3.835,4054.9,4054.8,0.95262525]
[1754684089728,3.835,4054.9,4054.8,4.01968589]
[1754684090125,3.835,4054.9,4054.8,1.55347301]
[1754684090343,3.835,4054.9,4054.8,4.01968589]
[1754684090932,3.835,4054.9,4054.8,1.55347301]
[1754684091973,3.835,4054.9,4054.8,0.95262525]
[1754684092265,3.835,4054.9,4054.8,3.41883813]
[1754684092868,3.835,4054.9,4054.8,0.95262525]
[1754684093270,3.835,4054.9,4054.8,3.41883813]
[1754684093772,2.46773,4055.6,4054.9,2.46614143]
[1754684093990,3.834,4055.5,4054.9,3.41894143]
[1754684094186,3.834,4055.5,4054.9,2.46614143]
[1754684094391,6.2998039,4055.5,4055.0,0.9319]
[1754684094593,3.834,4055.5,4054.7,2.46625697]
[1754684094760,3.834,4055.5,4055.1,0.9319]
[1754684094960,3.834,4055.5,4055.0,2.46605146]
[1754684095157,2.46772886,4055.6,4055.2,0.9319]
[1754684095359,3.834,4055.5,4055.3,0.9319]
[1754684095803,3.834,4055.5,4054.9,9.80635379]
[1754684095955,3.834,4055.5,4055.4,3.397748]
[1754684096285,3.834,4055.5,4054.9,9.80635379]
[1754684096286,3.834,4055.5,4055.3,2.46590583]
[1754684096652,3.834,4055.5,4055.4,2.465848]
[1754684096855,3.834,4055.5,4054.4,3.0]
[1754684097086,3.834,4055.5,4055.1,2.46602684]
[1754684097474,3.834,4055.5,4055.2,0.9319]
[1754684098374,3.834,4055.5,4054.9,2.94190222]
[1754684098572,3.834,4055.5,4055.0,2.46608339]
[1754684098882,3.834,4055.5,4054.9,2.94193921]
[1754684099360,6.29981741,4055.5,4054.9,0.4758]
[1754684099556,3.834,4055.5,4054.9,0.4758]
[1754684099754,3.832,4055.5,4055.0,0.4561]
[1754684099954,3.832,4055.5,4055.1,0.9565603]
[1754684100208,3.832,4055.5,4055.4,2.465848]
[1754684100412,3.832,4055.5,4055.4,3.397748]
[1754684101426,3.832,4055.5,4055.1,2.46598565]
[1754684101633,3.832,4055.5,4054.9,2.46614161]
[1754684101634,0.4303,4055.4,4054.9,2.46614161]
[1754684101815,1.044,4055.3,4054.7,0.1232]
[1754684102016,3.832,4055.2,4054.7,0.1232]
[1754684102204,0.1232,4055.0,4054.6,2.46628718]
[1754684102405,3.832,4054.9,4054.6,2.94208718]
[1754684102597,3.832,4054.9,4054.6,0.4758]
[1754684103035,3.832,4054.9,4054.7,2.46627176]
[1754684103337,3.832,4054.9,4054.6,2.94211446]
[1754684103541,3.832,4054.9,4054.7,2.46625297]
[1754684103840,3.832,4054.9,4054.4,3.1232]
[1754684104049,3.832,4054.9,4054.4,0.1232]
[1754684104257,3.832,4054.9,4054.8,2.46621288]
[1754684104538,3.832,4054.9,4054.5,2.46638905]
[1754684104539,3.832,4054.9,4054.5,0.9319]
[1754684104711,3.832,4054.9,4054.5,0.4758]
[1754684104918,3.832,4054.9,4054.5,2.94217892]
[1754684105148,3.832,4054.9,4054.4,2.58964494]
[1754684105345,4.2623,4054.9,4054.4,2.58964494]
[1754684105651,4.2623,4054.9,4054.4,0.1232]
[1754684105945,3.832,4054.9,4054.3,0.001]
[1754684106146,4.2623,4054.9,4054.3,2.46750405]
[1754684106353,0.1232,4054.7,4054.3,2.46750405]
[1754684106546,3.831,4054.6,4054.3,2.46750405]
[1754684107326,0.4303,4054.5,4054.4,0.001]
[1754684107543,0.9208,4054.5,4054.4,0.001]
[1754684107836,1.044,4054.5,4054.4,0.001]
[1754684109054,3.51039536,4054.5,4054.4,0.001]
[1754684109348,1.044,4054.5,4054.4,0.001]
[1754684109650,0.5535,4054.5,4054.4,0.001]
[1754684110550,0.1232,4054.5,4054.4,0.001]
[1754684111457,3.831,4054.6,4054.4,0.001]
[1754684111625,3.9542,4054.6,4054.4,3.3993399]
[1754684111822,3.831,4054.6,4054.5,3.39829536]
[1754684112254,0.1232,4054.9,4054.8,2.46621288]
[1754684112560,3.83,4054.9,4054.7,2.4662737]
[1754684112730,3.83,4054.9,4054.8,2.46621288]
[1754684112931,3.83,4054.9,4054.8,3.39811288]
[1754684113131,3.83,4054.9,4054.8,3.73232361]
[1754684113532,3.83,4054.9,4054.8,3.85552361]
[1754684114455,3.83,4054.9,4054.8,3.39942361]
[1754684114755,3.829,4054.9,4054.8,13.6618774]
[1754684115466,3.829,4054.9,4054.8,3.85552361]
[1754684115961,3.829,4055.2,4055.1,2.46602907]
[1754684116262,3.829,4055.2,4055.0,2.46608326]
[1754684116460,4.2593,4055.2,4054.8,0.1232]
[1754684116764,4.2593,4055.2,4054.9,2.46615206]
[1754684117529,0.4303,4055.1,4054.8,2.46620312]
[1754684117842,3.829,4055.2,4054.9,0.4758]
[1754684118158,3.829,4055.2,4055.0,2.46609124]
[1754684119128,3.829,4055.2,4054.9,2.46613696]
[1754684119335,3.829,4055.2,4054.8,2.58940671]
[1754684119659,4.2593,4055.2,4054.8,2.58940671]
[1754684119861,0.4303,4055.1,4054.8,2.46620671]
[1754684120439,3.829,4055.2,4054.9,2.46613944]
[1754684120677,3.829,4055.2,4054.8,2.46619089]
[1754684120859,0.9208,4055.1,4054.6,2.58949255]
[1754684121066,0.5535,4055.0,4054.6,2.58949255]
[1754684121391,0.1232,4055.0,4054.6,2.58949255]
[1754684121578,0.6137,4055.0,4054.6,2.46629255]
[1754684121745,0.4303,4054.9,4054.6,2.46629255]
[1754684121937,3.828,4054.8,4054.6,2.46629255]
[1754684122560,3.828,4054.8,4054.7,2.4662737]
[1754684122781,3.828,4054.8,4054.6,2.46631904]
[1754684122987,3.828,4054.8,4054.7,2.4662737]
[1754684123190,3.828,4054.8,4054.5,2.46634577]
[1754684123387,3.828,4054.8,4054.7,2.4662737]
[1754684123541,4.2583,4054.8,4054.4,2.46741771]
[1754684123939,0.4303,4054.7,4054.4,0.001]
[1754684124146,0.1232,4054.6,4054.4,0.001]
[1754684124378,3.827,4054.5,4054.4,0.001]
[1754684125280,3.827,4054.5,4054.4,2.46745619]
[1754684125653,3.827,4054.5,4054.4,2.94295619]
[1754684126940,0.4493,4055.8,4054.5,2.46639536]
[1754684127141,0.4493,4055.8,4054.9,2.46614665]
[1754684127142,3.826,4055.5,4054.9,2.46614665]
[1754684127373,3.826,4055.5,4055.1,2.46597057]
[1754684127785,3.826,4055.5,4055.1,2.94147057]
[1754684128002,3.826,4055.5,4055.2,2.46596073]
[1754684128172,3.826,4055.5,4055.1,2.94151133]
[1754684128605,3.826,4055.5,4055.3,2.46588176]
[1754684128963,3.826,4055.5,4055.2,2.46594952]
[1754684129159,3.826,4055.5,4055.1,0.4755]
[1754684129366,3.826,4055.4,4055.3,2.46590881]
[1754684129790,3.826,4055.4,4055.3,3.51770881]
[1754684129963,3.826,4055.4,4055.3,4.11607665]
[1754684130163,3.826,4055.4,4055.3,3.66297665]
[1754684130364,3.826,4055.4,4055.3,0.1232]
[1754684131488,3.826,4055.4,4055.3,2.58910881]
[1754684132286,3.826,4055.4,4055.3,0.1232]
[1754684132489,3.826,4055.4,4055.3,2.58910881]
[1754684133896,0.002,4055.5,4055.4,2.465848]
[1754684134066,3.825,4055.4,4055.3,2.58908517]
[1754684134698,3.825,4055.4,4055.3,0.1232]
[1754684134901,4.2743,4055.4,4055.3,0.1232]
[1754684135109,3.825,4055.4,4055.3,2.58910881]
[1754684135883,3.825,4055.4,4055.3,0.1232]
[1754684136271,4.2743,4055.4,4054.8,2.46721199]
[1754684136603,4.2743,4055.4,4055.0,2.58927962]
[1754684136974,4.2743,4055.4,4055.0,0.1232]
[1754684136975,0.4493,4055.3,4055.0,0.1232]
[1754684137304,0.4493,4055.2,4054.8,0.001]
[1754684137598,0.4493,4055.2,4055.1,2.46603043]
[1754684137803,0.4493,4055.2,4055.0,2.46608082]
[1754684138303,0.4493,4055.2,4054.8,0.1242]
[1754684138499,3.825,4055.4,4054.8,0.1242]
[1754684138702,0.4493,4055.1,4054.8,0.1242]
[1754684139002,3.824,4055.0,4054.8,0.001]
[1754684139379,3.824,4055.0,4054.8,2.46720759]
[1754684139776,3.824,4055.0,4054.9,2.46615206]
[1754684139977,3.824,4055.0,4054.8,2.46719985]
[1754684140178,0.4493,4054.9,4054.8,0.001]
[1754684140380,0.9472,4054.9,4054.8,0.001]
[1754684140579,1.43664,4054.9,4054.8,0.001]
[1754684141278,3.90279206,4054.9,4054.8,0.001]
[1754684141478,4.02599206,4054.9,4054.8,0.001]
[1754684144294,3.52809206,4054.9,4054.8,0.001]
[1754684144629,4.02599206,4054.9,4054.8,0.001]
[1754684150927,0.48944,4054.9,4054.8,0.001]
[1754684151113,2.58935206,4054.9,4054.8,0.001]
[1754684151629,3.53655206,4054.9,4054.8,0.001]
[1754684153316,2.58935206,4054.9,4054.8,0.001]
[1754684153518,3.822,4054.9,4054.8,0.001]
[1754684156934,6.28815206,4054.9,4054.8,0.001]
[1754684157100,3.822,4054.9,4054.8,0.001]
[1754684159228,3.821,4054.9,4054.8,0.9394]
[1754684159629,3.821,4054.9,4054.8,0.4997]
[1754684159815,3.821,4054.9,4054.8,0.9394]
[1754684160015,3.821,4054.9,4054.8,3.52881288]
[1754684160323,3.821,4054.9,4054.8,4.12832701]
[1754684160535,0.002,4055.4,4055.3,2.46590881]
[1754684160733,0.002,4055.4,4055.3,2.58910881]
[1754684160938,0.002,4055.4,4055.3,3.52750881]
[1754684162619,0.002,4055.4,4055.3,0.1232]
[1754684163454,0.002,4055.4,4055.3,3.08780881]
[1754684163746,0.002,4055.4,4055.3,0.6219]
[1754684163916,0.002,4055.4,4055.3,3.08780881]
[1754684164112,0.002,4055.4,4055.3,0.1232]
[1754684164726,3.822,4055.4,4055.3,3.52750881]
[1754684164908,3.822,4055.4,4055.3,3.84890286]
[1754684166614,3.822,4055.4,4055.3,0.44459405]
[1754684166949,3.822,4055.4,4055.3,0.1232]
[1754684167337,3.822,4055.4,4055.3,3.08780881]
[1754684167648,3.822,4055.4,4055.3,3.52750881]
[1754684168033,3.822,4055.4,4055.3,0.1232]
[1754684168541,4.2885,4055.4,4054.9,2.46613201]
[1754684168746,4.2885,4055.4,4055.1,0.1232]
[1754684169319,0.4665,4055.3,4055.1,0.1232]
[1754684169727,4.3075,4055.4,4055.1,0.1232]
[1754684170046,0.4665,4055.3,4055.1,0.1232]
[1754684170517,3.822,4055.4,4054.9,2.46614075]
[1754684170855,0.4665,4055.2,4054.9,0.1232]
[1754684171162,3.819,4055.1,4054.9,0.1232]
[1754684171724,0.002,4055.4,4055.0,2.46609124]
[1754684171937,3.819,4055.3,4055.0,0.9384]
[1754684172149,3.819,4055.3,4055.0,0.4987]
[1754684172320,3.819,4055.3,4054.9,2.58934874]
[1754684172522,3.819,4055.3,4055.0,2.46605843]
[1754684172925,3.819,4055.3,4054.9,3.08804421]
[1754684173250,0.002,4055.4,4055.1,2.46598219]
[1754684173453,0.002,4055.4,4055.0,0.9384]
[1754684173654,3.82,4055.4,4055.3,2.58910881]
[1754684174043,3.82,4055.4,4055.3,3.52750881]
[1754684175219,0.002,4055.4,4055.3,3.52750881]
[1754684175426,0.002,4055.4,4055.3,3.8489158]
[1754684177924,1e-08,4055.5,4055.4,3.015848]
[1754684178124,1e-08,4055.5,4055.4,6.97890648]
[1754684178356,1e-08,4055.5,4055.4,6.954248]
[1754684178655,0.002,4055.6,4055.5,5.4657872]
[1754684178656,1e-08,4055.6,4055.5,5.4657872]
[1754684178958,1e-08,4055.6,4055.5,10.2211872]
[1754684179827,1e-08,4055.6,4055.5,10.7711872]
[1754684180567,0.002,4056.5,4056.1,2.46542245]
[1754684180873,0.002,4057.0,4056.8,2.46499704]
[1754684181056,0.002,4057.0,4056.8,9.72560403]
[1754684181567,0.002,4057.0,4056.8,10.66400403]
[1754684181763,0.002,4057.0,4056.8,5.90960403]
[1754684182966,0.002,4057.0,4056.8,6.84800403]
[1754684183373,0.002,4057.0,4056.8,10.77430403]
[1754684183569,0.002,4057.0,4056.8,11.09080403]
[1754684184455,0.002,4057.0,4056.8,10.54080403]
[1754684186478,0.002,4057.0,4056.8,9.60140403]
[1754684187072,0.002,4057.0,4056.8,10.06050403]
[1754684187268,0.002,4057.0,4056.8,5.78640403]
[1754684187564,0.002,4057.0,4056.8,6.71380403]
[1754684188379,0.002,4057.0,4056.8,6.24550403]
[1754684188576,0.002,4057.0,4056.8,5.78640403]
[1754684189746,0.002,4057.0,4056.8,6.24550403]
[1754684190480,0.002,4057.0,4056.8,5.78640403]
[1754684191680,0.4584,4056.9,4056.8,5.78640403]
[1754684191881,0.9101,4056.9,4056.8,5.46499704]
[1754684192444,0.002,4056.9,4056.8,5.46499704]
[1754684192676,0.4584,4056.9,4056.8,5.46499704]
[1754684192845,0.4584,4056.9,4056.3,2.46530088]
[1754684193047,0.4584,4056.9,4055.6,0.4591]
[1754684193048,0.002,4056.9,4055.6,0.4591]
[1754684193364,0.002,4056.9,4056.8,2.46499704]
[1754684193545,0.002,4056.9,4056.8,2.58819704]
[1754684194248,0.002,4056.9,4056.8,5.58819704]
[1754684197402,0.9101,4056.9,4056.8,5.58819704]
[1754684198397,0.9101,4056.9,4056.8,0.1232]
[1754684198596,1.24798688,4056.9,4056.8,0.1232]
[1754684199019,1.24798688,4056.9,4056.4,2.46523721]
[1754684199203,0.9081,4056.8,4056.4,2.58843721]
[1754684199570,3.816,4056.9,4056.5,2.46517294]
[1754684199768,0.002,4056.9,4056.6,2.46511857]
[1754684199987,0.002,4056.9,4056.8,2.58819704]
[1754684200464,0.002,4056.9,4056.8,0.1232]
[1754684200663,0.9101,4056.9,4056.8,2.58819704]
[1754684200878,0.4584,4056.9,4056.8,2.58819704]
[1754684201075,0.9101,4056.9,4056.8,0.1232]
[1754684201298,0.9101,4056.9,4056.5,2.46515756]
[1754684201467,0.002,4056.9,4056.6,0.1232]
[1754684201668,0.9081,4056.8,4056.6,0.1232]
[1754684201998,0.9081,4056.7,4056.6,0.1232]
[1754684202501,0.002,4056.9,4056.6,0.1232]
[1754684202677,0.002,4056.9,4056.8,2.46499704]
[1754684205408,0.002,4056.9,4056.8,3.39239704]
[1754684205905,0.002,4056.9,4056.8,6.39239704]
[1754684206471,0.002,4056.9,4056.8,10.20539704]
[1754684206678,0.002,4056.9,4056.8,10.86746257]
[1754684207677,0.002,4056.9,4056.8,6.12706257]
[1754684207974,0.4584,4056.9,4056.7,2.4650079]
[1754684208201,0.4584,4056.9,4056.6,0.1232]
[1754684208202,0.9081,4056.8,4056.6,0.1232]
[1754684208707,0.002,4056.9,4056.6,0.1232]
[1754684208708,0.4564,4056.7,4056.6,0.1232]
[1754684208873,0.002,4056.9,4056.6,0.1232]
[1754684209077,0.4564,4056.8,4056.6,0.1232]
[1754684210012,0.4564,4056.8,4056.6,2.58831115]
[1754684211216,0.4564,4056.8,4056.6,0.1232]
[1754684211404,0.002,4056.9,4056.6,0.1232]
[1754684211577,0.9081,4056.8,4056.6,0.1232]
[1754684211782,0.002,4056.9,4056.8,2.46499704]
[1754684212224,0.4584,4056.9,4056.7,0.1232]
[1754684212513,0.9081,4056.8,4056.7,0.1232]
[1754684214819,0.9081,4056.8,4056.2,5.46536166]
[1754684215126,0.439,4056.7,4056.4,0.1232]
[1754684215295,4.252,4056.7,4056.4,0.1232]
[1754684215624,3.813,4056.7,4056.5,2.46514926]
[1754684215922,3.813,4056.7,4056.6,0.1232]
[1754684216220,4.252,4056.7,4056.6,0.1232]
[1754684219424,3.813,4056.7,4056.6,0.1232]
[1754684220891,4.7168,4056.7,4056.6,0.1232]
[1754684221624,4.252,4056.7,4056.6,0.1232]
[1754684222193,2.46526038,4056.4,4056.2,0.001]
[1754684222405,6.27830088,4056.3,4056.2,0.001]
[1754684222725,7.18210088,4056.3,4056.2,0.001]
[1754684223626,7.18210088,4056.3,4056.2,1e-08]
[1754684223627,11.38702424,4056.3,4056.2,1e-08]
[1754684223806,17.30702424,4056.3,4056.2,1e-08]
[1754684224010,19.86231433,4056.3,4056.2,1e-08]
[1754684225223,23.86231433,4056.3,4056.2,1e-08]
[1754684226933,18.91131433,4056.3,4056.2,1e-08]
[1754684227109,20.31331433,4056.3,4056.2,1e-08]
[1754684227311,19.78159097,4056.3,4056.2,1e-08]
[1754684228018,15.78159097,4056.3,4056.2,1e-08]
[1754684231616,19.33159097,4056.3,4056.2,1e-08]
[1754684231793,19.86157432,4056.3,4056.2,1e-08]
[1754684232431,23.86157432,4056.3,4056.2,1e-08]
[1754684232630,23.86157432,4056.3,4055.7,1e-08]
[1754684232631,3.01560481,4055.8,4055.7,1e-08]
[1754684232833,9.83360481,4055.8,4055.7,1e-08]
[1754684233043,10.86060481,4055.8,4055.7,1e-08]
[1754684233736,3.0157264,4055.6,4055.5,1e-08]
[1754684233909,9.8327264,4055.6,4055.5,1e-08]
[1754684234109,12.06905952,4055.6,4055.5,1e-08]
[1754684235342,6.79825952,4055.6,4055.5,1e-08]
[1754684235634,10.61525952,4055.6,4055.5,1e-08]
[1754684235834,11.05425952,4055.6,4055.5,1e-08]
[1754684236139,11.51905952,4055.6,4055.5,1e-08]
[1754684236912,11.05425952,4055.6,4055.5,1e-08]
[1754684238140,11.05425952,4055.6,4055.3,0.001]
[1754684238141,3.015848,4055.4,4055.3,1e-08]
[1754684238330,9.830848,4055.4,4055.3,1e-08]
[1754684238634,10.734648,4055.4,4055.3,1e-08]
[1754684239211,14.734648,4055.4,4055.3,1e-08]
[1754684242846,2.46639536,4054.5,4054.4,0.001]
[1754684243020,6.28139536,4054.5,4054.4,0.001]
[1754684243225,7.18519536,4054.5,4054.4,0.001]
[1754684243543,2.46639536,4054.5,4054.4,0.001]
[1754684243743,6.28239536,4054.5,4054.4,0.001]
[1754684244086,7.45726227,4054.5,4054.4,0.001]
[1754684246038,2.46639536,4054.5,4054.4,0.001]
[1754684246244,6.28239536,4054.5,4054.4,0.9072]
[1754684248055,6.40559536,4054.5,4054.4,0.9072]
[1754684249377,0.1232,4054.8,4054.4,0.9072]
[1754684249576,3.816,4054.7,4054.4,0.001]
[1754684249743,3.816,4054.7,4054.5,0.9062]
[1754684249943,3.816,4054.7,4054.6,0.9062]
[1754684250445,6.2822737,4054.7,4054.6,0.9062]
[1754684250754,3.816,4054.7,4054.6,0.9062]
[1754684251144,3.816,4054.7,4054.4,0.001]
[1754684251354,3.816,4054.7,4054.6,0.4503]
[1754684251868,3.816,4054.7,4054.6,0.9062]
[1754684252870,3.816,4054.7,4054.4,0.001]
[1754684253037,2.4663779,4054.6,4054.4,0.001]
[1754684253234,6.28239536,4054.5,4054.4,0.001]
[1754684254042,6.40559536,4054.5,4054.4,0.001]
[1754684256773,3.9392,4054.5,4054.4,0.9072]
[1754684257148,6.40559536,4054.5,4054.4,0.9072]
[1754684257339,3.9392,4054.5,4054.4,0.9072]
[1754684257545,0.1232,4054.5,4054.4,0.9072]
[1754684257745,3.816,4054.5,4054.4,0.9072]
[1754684259890,0.1252,4054.8,4054.4,1.25709584]
[1754684260059,0.002,4054.8,4054.7,2.5894737]
[1754684260388,3.818,4054.8,4054.7,2.5894737]
[1754684260690,3.818,4054.8,4054.7,3.4956737]
[1754684260899,3.818,4054.8,4054.7,4.06668604]
[1754684263779,3.817,4054.8,4054.7,4.06668604]
[1754684264893,0.002,4054.8,4054.7,4.06668604]
[1754684265116,3.817,4054.8,4054.7,4.06668604]
[1754684266496,0.002,4054.8,4054.7,4.06668604]
[1754684266790,3.817,4054.8,4054.7,4.06668604]
[1754684267985,0.002,4054.8,4054.7,4.06668604]
[1754684268160,3.817,4054.8,4054.7,4.06668604]
[1754684271082,3.817,4054.8,4054.7,0.1232]
[1754684271475,4.757,4054.8,4054.4,2.59064214]
[1754684271677,4.3146,4054.8,4054.4,2.59064214]
[1754684271878,0.4424,4054.7,4054.4,0.1242]
[1754684272077,0.4424,4054.6,4054.4,0.1242]
[1754684272277,4.3146,4054.8,4054.4,2.59065413]
[1754684272488,4.2594,4054.8,4054.4,2.59065413]
[1754684272969,3.817,4054.8,4054.4,2.59065413]
[1754684273678,0.002,4054.8,4054.7,2.4662737]
[1754684273906,3.817,4054.8,4054.7,3.4956737]
[1754684274071,0.002,4054.8,4054.7,3.4956737]
[1754684274289,0.002,4054.8,4054.7,3.8656298]
[1754684275789,0.002,4054.8,4054.7,6.7424298]
[1754684276019,0.002,4054.8,4054.7,6.8656298]
[1754684280423,0.002,4055.3,4054.7,6.8656298]
[1754684280424,0.002,4055.3,4055.2,2.46596961]
[1754684280590,0.002,4055.3,4055.2,15.53225022]
[1754684280790,0.002,4055.3,4055.2,15.65545022]
[1754684281102,0.002,4055.3,4055.2,16.58665022]
[1754684281324,0.002,4055.3,4055.2,20.40065022]
[1754684283353,0.002,4055.3,4055.2,5.83576657]
[1754684283559,0.002,4055.3,4055.2,6.29266657]
[1754684283723,0.002,4055.3,4055.2,6.76696657]
[1754684284351,1e-08,4055.3,4055.2,11.13096657]
[1754684284552,1e-08,4055.3,4055.2,14.14020357]
[1754684284753,1e-08,4055.3,4055.2,23.39170349]
[1754684286258,1e-08,4055.3,4055.2,30.37473349]
[1754684286458,1e-08,4055.7,4055.6,3.0157264]
[1754684286644,1e-08,4055.7,4055.6,10.28093878]
[1754684286838,1e-08,4055.7,4055.6,11.18748152]
[1754684287938,0.002,4056.9,4056.3,2.46527719]
[1754684288138,0.002,4056.9,4056.7,2.4650578]
[1754684288342,0.002,4056.9,4056.7,2.5882578]
[1754684288674,0.002,4056.9,4056.7,2.9582139]
[1754684289085,0.002,4056.9,4056.8,3.01499704]
[1754684289310,0.002,4056.9,4056.8,19.20693396]
[1754684289878,0.002,4056.9,4056.8,6.47189704]
[1754684290083,0.002,4056.9,4056.8,6.94619704]
[1754684290298,0.002,4056.9,4056.8,7.49714912]
[1754684290783,0.002,4056.9,4056.8,7.02284912]
[1754684291290,0.002,4056.9,4056.8,6.01594912]
[1754684291616,0.002,4056.9,4056.8,9.82994912]
[1754684291821,0.002,4056.9,4056.8,10.83684912]
[1754684292326,0.002,4056.9,4056.8,11.31114912]
[1754684292887,0.002,4056.9,4056.8,10.83684912]
[1754684294131,0.002,4056.9,4056.8,10.37994912]
[1754684294499,0.002,4056.9,4056.8,10.83684912]
[1754684295215,0.002,4056.9,4056.8,11.31114912]
[1754684295402,0.002,4056.9,4056.8,11.40981712]
[1754684295988,0.002,4056.9,4056.8,10.93551712]
[1754684296323,0.002,4056.9,4056.8,10.47861712]
[1754684297501,0.002,4056.9,4056.8,11.40981712]
[1754684297723,0.002,4056.9,4056.8,10.93551712]
[1754684299124,0.002,4056.9,4056.8,11.05871712]
[1754684299319,0.002,4056.9,4056.8,11.53301712]
[1754684299889,1e-08,4056.9,4056.8,11.53301712]
[1754684300090,1e-08,4056.9,4056.8,11.40981712]
[1754684300628,1e-08,4057.0,4056.9,6.01493628]
[1754684300795,1e-08,4057.0,4056.9,7.31609238]
[1754684302423,1e-08,4057.0,4056.9,10.20189238]
[1754684303313,1e-08,4057.0,4056.9,10.19189238]
[1754684303515,0.45320001,4057.0,4056.9,9.64189238]
[1754684304098,1e-08,4057.0,4056.9,9.64189238]
[1754684304293,1e-08,4057.0,4056.9,11.67289238]
[1754684304498,1e-08,4057.0,4056.9,11.08809238]
[1754684305627,1e-08,4057.0,4056.9,10.74326338]
[1754684305800,1e-08,4057.0,4056.9,10.29056338]
[1754684307192,1e-08,4057.0,4056.9,21.57536]
[1754684307528,1e-08,4057.0,4056.9,10.19189238]
[1754684307822,1e-08,4057.0,4056.9,10.29057138]
[1754684308038,1e-08,4057.0,4056.9,10.19189238]
[1754684310037,1e-08,4057.0,4056.9,10.31509238]
[1754684310635,1e-08,4057.0,4056.9,9.76509238]
[1754684311141,1e-08,4057.0,4056.9,12.69229238]
[1754684311836,1e-08,4057.0,4056.9,10.31509238]
[1754684312636,1e-08,4057.0,4056.9,5.94809238]
[1754684312837,1e-08,4057.0,4056.9,9.79009238]
[1754684314752,1e-08,4057.0,4056.9,10.34009238]
[1754684314938,1e-08,4057.0,4056.9,11.23629238]
[1754684316145,1e-08,4057.0,4056.9,10.34009238]
[1754684316315,1e-08,4057.0,4056.9,10.43876538]
[1754684316755,1e-08,4057.0,4056.9,9.79009238]
[1754684317151,1e-08,4057.0,4056.9,6.79009238]
[1754684317370,0.92240001,4057.0,4056.9,2.57813628]
[1754684318520,0.92240001,4057.0,4056.9,0.1232]
[1754684318734,3.38727553,4057.0,4056.9,0.1232]
[1754684319024,3.38727553,4057.0,4055.9,0.001]
[1754684319025,0.92240001,4057.0,4055.9,0.001]
[1754684319358,0.1232,4056.8,4056.3,0.1232]
[1754684319523,2.46524011,4056.4,4056.3,0.1232]
[1754684319725,4.7734,4056.4,4055.9,0.001]
[1754684319929,0.1232,4056.1,4055.9,0.001]
[1754684320255,2.58863332,4056.1,4055.9,0.001]
[1754684320455,3.11630116,4056.0,4055.9,0.001]
[1754684320656,4.03870116,4056.0,4055.9,0.001]
[1754684326673,5.42021793,4056.0,4055.9,0.001]
[1754684327039,7.88570116,4056.0,4055.9,0.001]
[1754684327370,8.00890116,4056.0,4055.9,0.001]
[1754684328673,5.54341793,4056.0,4055.9,0.001]
[1754684330386,8.00890116,4056.0,4055.9,0.001]
[1754684335182,8.55890116,4056.0,4055.9,0.001]
[1754684335569,20.81423181,4056.0,4055.9,0.001]
[1754684335948,23.81423181,4056.0,4055.9,0.001]
[1754684336289,25.69256829,4056.0,4055.9,1e-08]
[1754684336580,6.01554402,4055.9,4055.8,1e-08]
[1754684336775,9.51073411,4055.9,4055.8,1e-08]
[1754684336974,15.37677254,4055.9,4055.8,1e-08]
[1754684337846,15.90470003,4055.9,4055.8,1e-08]
[1754684339386,19.74570003,4055.9,4055.8,1e-08]
[1754684340256,19.74570003,4055.9,4055.5,0.001]
[1754684340257,3.0157264,4055.6,4055.5,1e-08]
[1754684340476,12.25506904,4055.6,4055.5,1e-08]
[1754684340682,15.54702784,4055.6,4055.5,1e-08]
[1754684340886,0.55,4055.0,4054.6,0.001]
[1754684341066,3.1394737,4054.7,4054.6,0.001]
[1754684341578,2.5894737,4054.7,4054.6,0.001]
[1754684341839,7.69810916,4054.7,4054.6,0.001]
[1754684342956,9.18800916,4054.7,4054.6,0.001]
[1754684344892,18.53847869,4054.7,4054.6,0.001]
[1754684345063,8.24810916,4054.7,4054.6,0.001]
[1754684345265,8.71430916,4054.7,4054.6,0.001]
[1754684345464,9.71685854,4054.7,4054.6,0.001]
[1754684346518,9.71685854,4054.7,4054.6,1e-08]
[1754684346714,12.71685854,4054.7,4054.6,1e-08]
[1754684346917,13.37855961,4054.7,4054.6,1e-08]
[1754684347226,0.55,4054.5,4054.2,0.001]
[1754684347424,18.26111513,4054.4,4054.2,0.001]
[1754684347711,19.85306451,4054.4,4054.2,0.001]
[1754684347931,19.85306451,4054.4,4054.3,1e-08]
[1754684348097,20.51476558,4054.4,4054.3,1e-08]
[1754684348600,19.85306451,4054.4,4054.3,1e-08]
[1754684348807,10.02889498,4054.4,4054.3,1e-08]
[1754684349005,14.02889498,4054.4,4054.3,1e-08]
[1754684349345,14.02889498,4054.4,4053.9,0.001]
[1754684349346,3.55,4054.3,4053.8,1e-08]
[1754684349518,3.0167604,4053.9,4053.8,1e-08]
[1754684349718,10.38060978,4053.9,4053.8,1e-08]
[1754684350021,10.38060978,4053.9,4052.3,0.4771]
[1754684350022,3.01706468,4053.4,4052.3,0.4771]
[1754684350183,2.46767347,4052.4,4052.3,0.4771]
[1754684350383,2.46767347,4052.4,4052.2,0.4549]
[1754684350384,3.836,4052.4,4051.9,0.4771]
[1754684350597,2.46789182,4052.1,4051.8,0.1232]